bitfinex-derivatives/quotes_ETHF0:USTF0_20250919
["timestamp","ask_amount","ask_price","bid_price","bid_amount"]
[1758265069265,6.71336997,4527.4,4527.3,0.6961]
[1758265069460,6.93936997,4527.4,4527.3,0.6961]
[1758265071766,6.71336997,4527.4,4527.3,0.6961]
[1758265072169,6.93936997,4527.4,4527.3,0.6961]
[1758265072572,6.71336997,4527.4,4527.3,0.6961]
[1758265072774,6.93936997,4527.4,4527.3,0.4984]
[1758265073073,6.93936997,4527.4,4527.3,0.6961]
[1758265073466,6.71336997,4527.4,4527.3,0.6961]
[1758265073669,6.93936997,4527.4,4527.3,0.6961]
[1758265076074,7.08696997,4527.4,4527.3,0.6961]
[1758265076674,6.93936997,4527.4,4527.3,0.6961]
[1758265076870,6.71336997,4527.4,4527.3,0.6961]
[1758265077179,6.74416997,4527.4,4527.3,0.6961]
[1758265078774,5.241,4527.4,4527.3,0.6961]
[1758265078974,5.467,4527.4,4527.3,0.6961]
[1758265080280,5.661,4527.4,4527.3,0.6961]
[1758265080482,5.435,4527.4,4527.3,0.6961]
[1758265080886,5.241,4527.4,4527.3,0.6961]
[1758265081080,6.31726997,4527.4,4527.3,0.6961]
[1758265081686,6.51126997,4527.4,4527.3,0.6961]
[1758265082084,1.61696997,4527.4,4527.3,0.4984]
[1758265082390,0.5407,4527.3,4527.2,3.2078]
[1758265083075,0.5407,4527.3,4527.2,3.5136]
[1758265083689,0.5407,4527.3,4527.2,3.7082]
[1758265084990,0.3931,4527.3,4527.2,3.7082]
[1758265085793,1.31341147,4527.3,4527.2,3.7082]
[1758265086581,1.31341147,4527.3,4527.2,3.9218]
[1758265087191,0.3931,4527.3,4527.2,3.9218]
[1758265087387,1.31341147,4527.3,4527.2,3.9218]
[1758265087591,1.11431147,4527.3,4527.2,3.9218]
[1758265087992,6.35531147,4527.3,4527.2,3.9218]
[1758265088393,6.16131147,4527.3,4527.2,3.9218]
[1758265088588,6.38731147,4527.3,4527.2,3.9218]
[1758265088989,6.16131147,4527.3,4527.2,3.9218]
[1758265089489,6.35531147,4527.3,4527.2,3.9218]
[1758265089995,6.35531147,4527.3,4527.2,0.714]
[1758265090294,6.58131147,4527.3,4527.2,0.714]
[1758265090493,6.16131147,4527.3,4527.2,0.714]
[1758265091388,6.35531147,4527.3,4527.2,0.714]
[1758265091596,6.35531147,4527.3,4527.2,0.5004]
[1758265091597,7.62232294,4527.3,4527.2,0.5004]
[1758265091793,6.70201147,4527.3,4527.2,0.3058]
[1758265092497,6.70201147,4527.3,4527.2,0.5004]
[1758265092892,6.55441147,4527.3,4527.2,0.5004]
[1758265093597,6.35531147,4527.3,4527.2,0.714]
[1758265095591,6.55441147,4527.3,4527.2,0.714]
[1758265095895,6.78041147,4527.3,4527.2,0.714]
[1758265096398,6.55441147,4527.3,4527.2,0.714]
[1758265096600,6.78041147,4527.3,4527.2,0.714]
[1758265099399,6.38731147,4527.3,4527.2,0.714]
[1758265099799,5.241,4527.3,4527.2,0.714]
[1758265100396,6.16131147,4527.3,4527.2,0.714]
[1758265101302,6.16131147,4527.3,4527.2,0.94]
[1758265102609,5.241,4527.3,4527.2,0.94]
[1758265105901,1.11431147,4527.5,4527.4,0.714]
[1758265106203,1.11431147,4527.5,4527.4,3.9218]
[1758265106698,0.92031147,4527.7,4527.5,0.1274]
[1758265106900,0.226,4528.1,4528.0,0.4332]
[1758265107099,0.194,4528.2,4528.1,0.714]
[1758265107295,1.11431147,4528.2,4528.1,0.714]
[1758265107502,1.31341147,4528.2,4528.1,0.714]
[1758265108501,1.46101147,4528.2,4528.1,0.714]
[1758265111500,1.31341147,4528.2,4528.1,0.714]
[1758265112407,1.46101147,4528.2,4528.1,0.714]
[1758265112606,1.46101147,4528.2,4528.1,0.5004]
[1758265113009,2.38132294,4528.2,4528.1,0.3058]
[1758265113305,0.5407,4528.2,4528.1,0.3058]
[1758265113501,1.46101147,4528.2,4528.1,0.3058]
[1758265114003,1.46101147,4528.2,4528.1,0.5065]
[1758265114201,5.3886,4528.9,4528.1,0.7169]
[1758265114405,0.92031147,4528.3,4528.1,0.4111]
[1758265114606,1.31781147,4528.5,4528.4,0.7221]
[1758265115808,1.46541147,4528.5,4528.4,0.311]
[1758265116006,0.5451,4528.5,4528.4,0.311]
[1758265116208,1.46541147,4528.5,4528.4,0.5117]
[1758265117704,6.70641147,4528.5,4528.4,0.5117]
[1758265118813,0.5451,4528.1,4528.0,0.311]
[1758265119001,1.46541147,4528.1,4528.0,0.311]
[1758265119406,1.46541147,4528.1,4528.0,0.4279]
[1758265119907,1.31781147,4528.1,4528.0,3.8364]
[1758265120210,1.31781147,4528.1,4528.0,4.0468]
[1758265122805,1.31781147,4528.1,4528.0,3.6357]
[1758265123008,1.31781147,4528.1,4527.9,0.022]
[1758265123009,2.83157294,4528.1,4527.9,0.022]
[1758265123201,0.6299,4528.0,4527.9,0.022]
[1758265123612,0.3975,4527.6,4527.5,3.3247]
[1758265123807,1.31781147,4527.6,4527.5,3.6357]
[1758265124110,1.46541147,4527.6,4527.5,3.6357]
[1758265124307,1.31781147,4527.6,4527.5,3.2078]
[1758265124513,1.46541147,4527.6,4527.5,3.6357]
[1758265124909,1.46541147,4527.6,4527.5,3.8364]
[1758265125308,0.5451,4527.6,4527.5,3.8364]
[1758265125513,1.31781147,4527.6,4527.5,3.8364]
[1758265127904,1.12111147,4527.6,4527.5,3.4085]
[1758265128108,1.31781147,4527.6,4527.5,3.8364]
[1758265129415,1.31781147,4527.6,4527.5,3.5188]
[1758265129621,0.5451,4527.4,4527.3,0.022]
[1758265129814,1.46541147,4527.4,4527.3,0.022]
[1758265130113,1.84062294,4527.4,4527.1,0.311]
[1758265130319,2.38572294,4527.2,4527.1,0.311]
[1758265130519,2.61072294,4527.2,4527.1,0.311]
[1758265130911,0.3975,4527.2,4527.1,0.5117]
[1758265131219,1.69041147,4527.2,4527.1,0.311]
[1758265132019,1.69041147,4527.2,4526.0,2.0901117]
[1758265132020,0.1476,4526.6,4526.4,3.2078]
[1758265132215,2.61072294,4526.5,4526.0,0.1169]
[1758265132420,2.38572294,4526.1,4526.0,0.4279]
[1758265133322,2.38572294,4526.1,4526.0,0.311]
[1758265134818,2.23812294,4526.1,4525.8,0.022]
[1758265135028,1.46541147,4525.9,4525.8,0.333]
[1758265135324,1.69041147,4525.9,4525.8,0.5337]
[1758265135622,1.69041147,4525.9,4525.8,0.333]
[1758265136319,1.69041147,4525.9,4525.8,0.022]
[1758265137125,0.54,4525.7,4525.6,0.3098]
[1758265137320,1.46031147,4525.7,4525.6,0.3098]
[1758265139923,1.46031147,4525.7,4525.3,3.64975477]
[1758265140118,0.5497,4525.5,4525.4,0.3157]
[1758265140522,0.7747,4525.5,4525.4,0.3157]
[1758265140729,0.7747,4525.5,4525.4,0.5144]
[1758265141224,1.69501147,4525.5,4525.4,0.5144]
[1758265141927,2.39032294,4525.5,4525.4,0.3157]
[1758265142132,2.61532294,4525.5,4525.4,0.3157]
[1758265142333,1.69501147,4525.5,4525.4,0.3157]
[1758265144133,1.54741147,4525.5,4525.4,0.5144]
[1758265144528,1.69501147,4525.5,4525.4,0.5144]
[1758265145129,1.54741147,4525.5,4525.4,0.5144]
[1758265145329,1.54741147,4525.5,4525.4,0.7095]
[1758265146327,1.54741147,4525.5,4525.4,0.5108]
[1758265146528,1.54741147,4525.5,4525.3,3.64975477]
[1758265146529,0.1476,4525.4,4525.3,3.64975477]
[1758265146733,0.5497,4525.4,4525.3,3.64975477]
[1758265146936,0.5497,4525.4,4525.3,3.96545477]
[1758265147638,1.47001147,4525.4,4525.3,3.96545477]
[1758265147834,2.7054438,4525.4,4525.3,3.96545477]
[1758265148029,2.7054438,4525.4,4525.3,0.75765477]
[1758265149537,1.6275719,4525.4,4525.3,0.44195477]
[1758265149737,2.7054438,4525.4,4525.3,0.44195477]
[1758265150241,6.8685719,4525.4,4525.3,0.75765477]
[1758265150441,6.9459719,4525.4,4525.3,0.95635477]
[1758265151542,6.7209719,4525.4,4525.3,0.95635477]
[1758265152038,5.6431,4525.4,4525.3,1.15145477]
[1758265152243,6.9459719,4525.4,4525.3,1.15145477]
[1758265154233,6.7209719,4525.4,4525.3,1.15145477]
[1758265154438,6.9459719,4525.4,4525.3,1.15145477]
[1758265155938,7.0935719,4525.4,4525.3,0.75765477]
[1758265156545,7.0935719,4525.4,4525.3,0.95635477]
[1758265158045,6.7209719,4525.4,4525.3,1.15145477]
[1758265158250,6.9459719,4525.4,4525.3,1.15145477]
[1758265158748,6.5141719,4525.4,4525.3,1.15145477]
[1758265158951,6.7391719,4525.4,4525.3,1.15145477]
[1758265159643,5.6613,4525.4,4525.3,1.15145477]
[1758265159851,5.4363,4525.4,4525.3,1.15145477]
[1758265160036,5.466,4525.4,4525.3,1.15145477]
[1758265161250,6.5438719,4525.4,4525.3,1.15145477]
[1758265161445,6.7391719,4525.4,4525.3,1.15145477]
[1758265164053,6.9459719,4525.4,4525.3,1.15145477]
[1758265164250,7.17992182,4525.4,4525.3,1.15145477]
[1758265164446,6.9459719,4525.4,4525.3,1.15145477]
[1758265164842,5.8681,4525.4,4525.3,1.15145477]
[1758265165048,6.9459719,4525.4,4525.3,1.15145477]
[1758265165248,7.17994365,4525.4,4525.3,1.15145477]
[1758265165551,6.7391719,4525.4,4525.3,1.15145477]
[1758265167651,6.5438719,4525.4,4525.3,1.15145477]
[1758265167851,5.466,4525.4,4525.3,4.35925477]
[1758265168250,5.241,4525.4,4525.3,4.35925477]
[1758265169756,5.4423,4525.4,4525.3,4.35925477]
[1758265170447,5.6526,4525.4,4525.3,4.35925477]
[1758265170848,5.7999,4525.4,4525.3,4.35925477]
[1758265171049,0.5589,4525.4,4525.3,4.35925477]
[1758265171358,0.7839,4525.4,4525.3,4.16415477]
[1758265171559,0.7839,4525.4,4525.3,0.75765477]
[1758265171857,0.7839,4525.4,4525.3,0.44195477]
[1758265172360,1.8617719,4525.4,4525.3,0.75265477]
[1758265175160,0.4116,4525.4,4525.3,1.16035477]
[1758265175460,1.4894719,4525.4,4525.3,1.16035477]
[1758265175649,1.2791719,4525.4,4525.3,1.16035477]
[1758265175853,1.5041719,4525.4,4525.3,1.16035477]
[1758265176057,1.7144719,4525.4,4525.3,1.16035477]
[1758265176349,1.8617719,4525.4,4525.3,0.75265477]
[1758265176558,1.8617719,4525.4,4525.3,0.44195477]
[1758265176754,1.7144719,4525.4,4525.3,0.94685477]
[1758265177555,1.8617719,4525.4,4525.3,0.94685477]
[1758265177859,1.6367719,4525.4,4525.3,0.94685477]
[1758265178161,1.7144719,4525.4,4525.3,0.94685477]
[1758265179066,1.4894719,4525.4,4525.3,0.94685477]
[1758265179564,1.6367719,4525.4,4525.3,0.94685477]
[1758265179961,6.8777719,4525.4,4525.3,0.94685477]
[1758265180560,6.7304719,4525.4,4525.3,0.94685477]
[1758265180755,6.7304719,4525.4,4525.3,2.23822667]
[1758265180756,5.241,4525.4,4525.3,2.23822667]
[1758265180963,5.241,4525.4,4525.3,5.44602667]
[1758265182062,5.241,4525.4,4525.3,8.36815477]
[1758265183163,5.241,4525.4,4525.3,4.36815477]
[1758265184760,5.241,4525.4,4525.3,4.59315477]
[1758265185266,5.241,4525.4,4525.3,8.59315477]
[1758265185861,6.5201719,4525.9,4525.8,0.4077]
[1758265186061,6.5201719,4525.9,4525.8,0.7184]
[1758265186263,5.6526,4525.9,4525.8,0.7184]
[1758265186568,5.6526,4525.9,4525.8,3.9262]
[1758265186764,5.4423,4525.9,4525.8,3.9262]
[1758265187061,5.241,4525.9,4525.8,3.9262]
[1758265188170,5.4423,4525.9,4525.8,3.9262]
[1758265189065,5.241,4525.9,4525.8,3.9262]
[1758265189971,5.4423,4525.9,4525.8,3.9262]
[1758265191471,5.6526,4525.9,4525.8,3.9262]
[1758265193067,6.0249,4525.9,4525.8,0.3107]
[1758265193367,6.0249,4525.9,4525.5,0.1273]
[1758265193368,5.8776,4525.9,4525.6,0.3107]
[1758265193672,1.6367719,4525.7,4525.6,0.3107]
[1758265194267,5.241,4525.9,4525.7,0.3107]
[1758265194471,0.2013,4525.8,4525.7,0.7184]
[1758265194673,0.4116,4525.8,4525.7,0.7184]
[1758265195676,0.5589,4525.8,4525.7,0.5049]
[1758265195870,0.5589,4525.8,4525.7,0.3107]
[1758265196271,0.5589,4525.8,4525.7,0.5058]
[1758265196779,0.4116,4525.8,4525.7,0.5058]
[1758265197178,1.4894719,4525.8,4525.7,0.5058]
[1758265197781,1.4894719,4525.8,4525.7,0.7148]
[1758265198279,1.5120719,4526.1,4526.0,0.8214]
[1758265199084,1.7225719,4526.1,4526.0,0.8214]
[1758265199277,1.8701719,4526.1,4526.0,0.8214]
[1758265200178,1.8701719,4526.1,4526.0,0.4164]
[1758265200382,1.8701719,4526.1,4526.0,0.2904]
[1758265201278,0.4197,4525.7,4525.5,0.022]
[1758265201485,1.6451719,4525.6,4525.5,0.3124]
[1758265201880,1.6451719,4525.6,4525.5,0.2904]
[1758265202483,0.2092,4525.4,4525.3,3.94015477]
[1758265202786,0.5673,4525.4,4525.3,4.13565477]
[1758265202987,1.6451719,4525.4,4525.3,4.13565477]
[1758265203186,1.4975719,4525.4,4525.3,4.13565477]
[1758265204186,0.4197,4525.4,4525.3,4.34515477]
[1758265204490,0.4197,4526.9,4526.8,0.1955]
[1758265204682,0.4197,4526.9,4526.8,0.6954]
[1758265204880,0.2092,4526.9,4526.8,0.6954]
[1758265205281,0.5673,4526.9,4526.5,0.126]
[1758265205486,0.4197,4526.6,4526.5,0.6119]
[1758265205681,3.2078,4527.0,4526.6,0.2904]
[1758265205881,4.2856719,4527.0,4526.9,0.2904]
[1758265206081,1.0778719,4527.0,4526.9,0.6954]
[1758265206276,1.2870719,4527.0,4526.9,0.6954]
[1758265206982,1.4975719,4527.0,4526.9,0.6954]
[1758265207183,1.6451719,4527.0,4526.9,0.4859]
[1758265207585,1.4975719,4527.0,4526.9,0.4859]
[1758265207886,2.26052546,4527.0,4526.9,0.4859]
[1758265208488,1.34011273,4527.0,4526.9,0.6954]
[1758265209180,1.12961273,4527.0,4526.9,0.1955]
[1758265209483,1.34011273,4527.0,4526.9,0.6954]
[1758265210486,3.2078,4527.5,4527.0,0.4164]
[1758265210783,0.92041273,4527.8,4527.5,0.126]
[1758265210983,1.12961273,4527.8,4527.7,0.6954]
[1758265211981,1.58153298,4530.2,4527.8,0.2904]
[1758265212186,0.2092,4527.9,4527.8,1.61581273]
[1758265212494,1.12961273,4528.1,4528.0,0.8214]
[1758265212790,1.12961273,4528.1,4527.7,3.4982]
[1758265212791,0.5673,4527.8,4527.7,3.4982]
[1758265212991,1.48771273,4527.8,4527.7,3.4982]
[1758265213187,1.34011273,4527.8,4527.7,3.6937]
[1758265213788,1.34011273,4527.8,4527.7,3.9032]
[1758265215289,0.2092,4527.8,4527.7,3.9032]
[1758265215687,0.1476,4528.3,4527.7,3.9032]
[1758265215895,0.4197,4528.1,4528.0,0.6119]
[1758265217092,1.34011273,4528.1,4528.0,0.6119]
[1758265217493,1.34011273,4528.1,4527.8,0.2904]
[1758265217494,0.1476,4528.0,4527.8,0.2904]
[1758265217695,0.1476,4527.8,4527.4,0.2904]
[1758265217902,0.2105,4527.2,4527.0,3.5588]
[1758265218095,0.4197,4527.2,4527.1,0.4859]
[1758265218594,0.5673,4527.1,4527.0,3.2078]
[1758265218802,0.4197,4527.1,4527.0,3.8197]
[1758265219294,1.34011273,4527.1,4527.0,3.8197]
[1758265220200,5.241,4527.7,4527.0,4.0292]
[1758265220395,0.7923,4527.6,4527.5,0.2904]
[1758265220694,1.71271273,4527.6,4527.5,0.2904]
[1758265220903,0.4197,4527.6,4527.5,0.8214]
[1758265221097,0.6447,4527.6,4527.5,0.8214]
[1758265221693,1.56511273,4527.6,4527.5,0.8214]
[1758265222496,1.71271273,4527.6,4527.5,0.6119]
[1758265224200,1.56511273,4527.6,4527.5,0.6119]
[1758265226000,1.56511273,4527.6,4527.5,0.8214]
[1758265226207,5.241,4527.7,4527.6,0.2904]
[1758265226510,5.6752,4527.7,4527.6,0.6954]
[1758265226806,5.8857,4527.7,4527.6,0.6954]
[1758265227801,5.8857,4527.7,4526.8,0.022]
[1758265227802,0.5673,4526.9,4526.8,0.022]
[1758265228006,1.71271273,4526.9,4526.8,0.022]
[1758265228201,1.71271273,4526.9,4526.5,0.4498]
[1758265228202,0.4165,4526.6,4526.5,0.4498]
[1758265228406,1.56191273,4526.6,4526.5,0.6622]
[1758265229509,1.56191273,4526.6,4526.5,0.8601]
[1758265230609,0.4165,4526.1,4526.0,0.126]
[1758265230806,2.40492546,4526.1,4526.0,0.448]
[1758265231110,1.33691273,4526.1,4526.0,0.8583]
[1758265231499,0.211,4526.1,4526.0,0.8583]
[1758265231704,0.1476,4527.1,4526.4,0.7323]
[1758265231906,0.92041273,4526.5,4526.4,3.9401]
[1758265232106,0.92041273,4526.7,4526.6,0.7323]
[1758265232603,1.12591273,4526.7,4526.6,0.7323]
[1758265232799,6.72551273,4526.7,4526.1,0.322]
[1758265233003,0.5641,4526.3,4526.2,0.547]
[1758265233204,0.5641,4526.3,4526.2,0.322]
[1758265233516,0.1476,4526.2,4526.1,0.322]
[1758265233810,0.5641,4526.2,4526.1,0.322]
[1758265234215,1.48451273,4526.2,4526.1,0.322]
[1758265234400,1.48451273,4526.2,4526.1,0.5344]
[1758265234401,1.33691273,4526.2,4526.1,0.5344]
[1758265234808,5.241,4526.7,4526.5,0.1278]
[1758265235112,5.6575,4526.7,4526.6,0.7323]
[1758265236109,6.57791273,4526.7,4526.6,0.322]
[1758265236310,6.72551273,4526.7,4526.6,0.322]
[1758265237519,6.72551273,4526.7,4526.6,0.5344]
[1758265238917,6.57791273,4526.7,4526.6,0.7323]
[1758265239114,5.6575,4526.7,4526.6,0.7323]
[1758265239316,6.59191273,4526.7,4526.6,0.7323]
[1758265239621,5.466,4526.7,4526.6,0.7323]
[1758265239920,6.38641273,4526.7,4526.6,0.7323]
[1758265240216,6.59191273,4526.7,4526.6,0.7323]
[1758265240608,6.80291273,4526.7,4526.6,0.7323]
[1758265240809,5.466,4526.7,4526.6,0.7323]
[1758265241020,0.92041273,4528.0,4527.4,0.7323]
[1758265241021,5.6575,4527.5,4527.4,0.7323]
[1758265241220,6.80291273,4527.5,4527.4,0.7323]
[1758265242515,6.95051273,4527.5,4527.4,0.5344]
[1758265243216,6.57791273,4527.5,4527.4,0.5344]
[1758265243413,6.80291273,4527.5,4527.4,0.5344]
[1758265243816,6.80291273,4527.5,4527.4,0.7323]
[1758265244918,6.80291273,4527.5,4527.4,0.5344]
[1758265245112,6.95051273,4527.5,4527.4,0.322]
[1758265246520,6.95051273,4527.5,4527.4,0.5344]
[1758265246820,6.95051273,4527.5,4527.4,0.322]
[1758265247312,5.241,4527.5,4527.4,1.65271273]
[1758265247618,0.2055,4528.1,4528.0,0.8601]
[1758265248716,1.12591273,4528.1,4528.0,0.8601]
[1758265249016,0.92041273,4528.8,4528.1,0.322]
[1758265249224,1.35091273,4528.8,4528.7,0.7323]
[1758265250419,1.56191273,4528.8,4528.7,0.7323]
[1758265250622,1.33691273,4528.8,4528.7,0.7323]
[1758265251217,0.2055,4529.1,4529.0,0.1278]
[1758265251518,1.33691273,4529.1,4529.0,0.5381]
[1758265251816,1.33691273,4529.1,4529.0,0.8601]
[1758265252018,1.33691273,4529.1,4529.0,0.6622]
[1758265252219,1.33691273,4529.1,4529.0,0.8601]
[1758265253324,1.12591273,4529.1,4529.0,0.8601]
[1758265253717,1.33691273,4529.1,4529.0,0.8601]
[1758265254525,0.2055,4529.1,4529.0,0.8601]
[1758265256020,0.92041273,4529.4,4529.1,0.322]
[1758265256314,3.4117,4529.8,4529.7,0.711]
[1758265256720,3.6108,4529.8,4529.7,0.711]
[1758265257117,3.6108,4529.8,4529.7,0.5097]
[1758265257317,3.7582,4529.8,4529.7,0.3119]
[1758265258223,0.403,4529.8,4529.7,0.5097]
[1758265258725,1.32341273,4529.8,4529.7,0.7126]
[1758265258928,0.92041273,4530.2,4529.7,0.92041273]
[1758265259229,0.7634,4530.2,4530.1,0.316]
[1758265259626,0.6158,4530.2,4530.1,0.7304]
[1758265260130,1.53621273,4530.2,4530.1,0.7304]
[1758265260326,3.2078,4530.3,4530.1,1.65081273]
[1758265260630,5.6318,4530.9,4530.8,0.7304]
[1758265260831,0.3908,4530.9,4530.8,0.7304]
[1758265261027,3.2078,4531.0,4530.9,0.316]
[1758265261225,3.2078,4531.0,4530.9,0.7304]
[1758265261427,3.4051,4531.0,4530.9,0.7304]
[1758265261626,3.5986,4531.0,4530.9,0.7304]
[1758265261824,0.0738,4532.0,4530.9,0.7304]
[1758265261825,0.3908,4531.6,4531.5,0.1283]
[1758265262131,0.3908,4531.6,4531.1,0.316]
[1758265262132,2.23162546,4531.6,4531.1,0.316]
[1758265262427,3.2078,4531.8,4531.1,0.316]
[1758265262428,3.3554,4531.8,4531.1,0.92041273]
[1758265262625,0.92041273,4531.4,4531.3,0.4144]
[1758265262823,3.2078,4531.8,4531.5,0.8587]
[1758265263022,4.12821273,4531.8,4531.7,0.4144]
[1758265263227,3.2078,4532.4,4532.3,0.4144]
[1758265263427,3.5986,4532.4,4532.3,0.7304]
[1758265263628,8.89161273,4532.4,4532.0,0.1283]
[1758265263830,0.3908,4531.8,4531.2,0.316]
[1758265264030,1.84082546,4532.1,4531.2,0.316]
[1758265264031,1.31121273,4531.3,4531.2,0.5275]
[1758265264729,1.31121273,4531.3,4531.0,0.1503]
[1758265264935,1.31121273,4531.1,4531.0,0.3618]
[1758265265228,0.1973,4531.1,4531.0,0.5647]
[1758265265432,1.11771273,4531.1,4531.0,0.8807]
[1758265265635,0.1973,4531.1,4531.0,1.80111273]
[1758265265830,0.225,4531.6,4531.5,0.3398]
[1758265266036,0.4223,4531.6,4531.5,0.8587]
[1758265266430,0.6158,4531.6,4531.5,0.8587]
[1758265266733,0.7634,4531.6,4531.5,0.4443]
[1758265266935,0.7634,4531.6,4531.5,0.6558]
[1758265267429,0.6158,4531.6,4531.5,0.6558]
[1758265267625,0.6158,4531.6,4531.0,0.1503]
[1758265267626,3.84956978,4531.6,4531.1,0.316]
[1758265267829,0.5384,4531.1,4531.0,0.338]
[1758265268229,4.3908,4531.1,4530.5,0.1283]
[1758265268431,3.62456978,4530.6,4530.1,0.316]
[1758265268730,3.08616978,4530.5,4530.0,0.5427]
[1758265269127,3.08616978,4530.5,4530.1,0.316]
[1758265269323,0.1973,4530.2,4530.1,0.2115]
[1758265269529,0.1973,4530.2,4530.1,0.7304]
[1758265269727,0.225,4530.6,4530.1,0.4144]
[1758265270029,0.4223,4530.8,4530.7,0.4144]
[1758265270223,0.6158,4530.8,4530.7,0.7304]
[1758265270423,0.7634,4530.8,4530.1,0.316]
[1758265270829,0.1973,4530.8,4530.7,0.7304]
[1758265271028,0.3908,4530.8,4530.7,0.7304]
[1758265271337,0.3908,4530.8,4530.7,0.5275]
[1758265271836,0.3908,4530.8,4530.7,0.7304]
[1758265272339,0.1973,4530.8,4530.7,0.7304]
[1758265272641,3.3554,4531.6,4530.8,0.316]
[1758265272936,0.6158,4531.5,4531.4,0.5275]
[1758265273326,0.6158,4531.5,4531.4,0.7304]
[1758265273934,0.4223,4531.5,4531.4,0.7304]
[1758265274232,3.2078,4531.6,4531.5,0.1283]
[1758265274533,3.2078,4531.6,4531.5,0.8587]
[1758265274935,3.4051,4531.6,4531.5,0.8587]
[1758265275632,3.5986,4531.6,4531.0,0.1283]
[1758265275839,0.5384,4531.2,4531.1,0.316]
[1758265276033,0.5384,4531.2,4531.1,0.5275]
[1758265276238,0.3908,4531.2,4531.1,0.7304]
[1758265276933,0.3908,4531.2,4531.1,0.316]
[1758265277128,0.5384,4531.2,4531.1,0.5275]
[1758265277328,0.3908,4531.2,4531.1,0.5275]
[1758265277936,0.3908,4531.2,4531.1,0.7304]
[1758265278131,0.5384,4531.2,4531.1,0.316]
[1758265278537,0.3908,4530.7,4530.6,0.316]
[1758265278731,0.3908,4530.7,4530.6,0.5275]
[1758265278939,0.3908,4530.7,4530.6,0.7304]
[1758265280541,0.3449,4530.6,4530.5,0.4663]
[1758265280733,5.7794,4530.6,4530.5,0.4663]
[1758265280933,5.7794,4530.6,4530.5,0.4443]
[1758265281339,5.7794,4530.6,4530.5,0.316]
[1758265281543,0.5384,4530.1,4530.0,0.4443]
[1758265281844,0.3908,4530.1,4530.0,0.6558]
[1758265282046,0.3908,4530.1,4530.0,0.8587]
[1758265282436,5.6318,4530.6,4530.5,0.3398]
[1758265282636,5.6318,4530.6,4530.5,0.6558]
[1758265282637,6.08306501,4530.6,4530.5,0.6558]
[1758265282846,6.08306501,4530.6,4530.5,0.8587]
[1758265283145,5.88956501,4530.6,4530.5,0.8587]
[1758265283446,5.6633,4530.6,4530.5,0.8587]
[1758265285040,5.241,4530.6,4530.5,0.8587]
[1758265285846,5.241,4530.8,4530.6,0.316]
[1758265286035,5.241,4530.8,4530.7,0.4144]
[1758265286343,5.241,4530.8,4530.7,0.7304]
[1758265289148,5.4377,4530.8,4530.7,0.7304]
[1758265289352,5.6514,4530.8,4530.7,0.7304]
[1758265292050,0.5574,4530.6,4530.5,0.3029]
[1758265293163,5.241,4530.8,4530.5,0.5386]
[1758265293453,0.86131989,4530.7,4530.6,0.7247]
[1758265293653,0.86131989,4530.7,4530.6,0.5171]
[1758265293845,1.00831989,4530.7,4530.6,0.3029]
[1758265294156,0.7814,4530.7,4530.6,0.3029]
[1758265295751,6.0224,4530.7,4530.6,0.5171]
[1758265295952,6.0224,4530.7,4530.6,0.3029]
[1758265296348,0.7814,4530.7,4530.6,0.3029]
[1758265297151,0.6344,4530.7,4530.3,0.022]
[1758265297358,0.5574,4530.4,4530.3,0.022]
[1758265297654,0.7814,4530.4,4529.8,0.3029]
[1758265297854,0.4104,4529.9,4529.8,0.3029]
[1758265298257,0.4104,4529.9,4529.8,0.5171]
[1758265298854,0.4104,4529.9,4529.8,0.7247]
[1758265299452,0.224,4530.2,4529.8,0.7247]
[1758265299652,1.77823298,4532.5,4532.4,0.2142]
[1758265299854,1.77823298,4532.5,4532.4,0.5171]
[1758265299855,1.21704925,4532.5,4532.4,0.5171]
[1758265300054,0.7096,4532.5,4532.4,0.27008687]
[1758265300253,5.23783001,4532.5,4532.4,0.27008687]
[1758265300559,5.23783001,4532.5,4531.2,0.3029]
[1758265300560,0.2914,4531.3,4531.2,0.3029]
[1758265300851,0.5174,4531.3,4531.2,0.3029]
[1758265301055,0.77812973,4531.3,4531.2,0.3029]
[1758265301451,0.77912973,4531.3,4531.2,0.5171]
[1758265301654,0.77912973,4531.3,4531.2,0.7247]
[1758265302053,0.87022973,4531.3,4531.0,0.1388]
[1758265302252,0.3825,4531.1,4531.0,0.3249]
[1758265302559,0.64322973,4531.1,4531.0,0.3249]
[1758265302855,0.64322973,4531.1,4531.0,0.022]
[1758265303050,4.64322973,4531.1,4531.0,0.022]
[1758265304057,4.87022973,4531.1,4531.0,0.022]
[1758265304660,0.2914,4530.6,4530.5,0.4197]
[1758265304957,0.77912973,4530.6,4530.5,0.4197]
[1758265305262,0.77912973,4530.6,4530.5,0.6339]
[1758265305652,0.77912973,4530.6,4530.5,0.8415]
[1758265308360,0.77912973,4530.6,4530.5,0.6339]
[1758265308665,0.87022973,4530.6,4530.5,0.4197]
[1758265308859,0.77912973,4530.6,4530.5,0.6339]
[1758265309367,0.87022973,4530.6,4530.5,0.4197]
[1758265309767,0.3825,4530.4,4530.3,0.022]
[1758265309963,0.64322973,4530.4,4530.3,0.022]
[1758265310161,0.64322973,4530.4,4530.3,0.3249]
[1758265310359,0.64322973,4530.4,4530.3,0.3029]
[1758265310755,0.55212973,4530.4,4530.3,0.3029]
[1758265310955,0.55212973,4530.4,4530.3,0.5171]
[1758265312871,0.55212973,4530.4,4530.3,0.7247]
[1758265313371,0.48672973,4530.4,4530.3,0.7247]
[1758265314367,0.63242973,4530.4,4530.3,0.7247]
[1758265314669,0.2914,4530.2,4530.1,0.3249]
[1758265314870,0.77812973,4530.2,4530.1,0.7467]
[1758265315365,0.48672973,4530.2,4530.1,0.7467]
[1758265316368,0.63352973,4530.2,4530.1,0.7247]
[1758265317970,0.48672973,4530.2,4530.1,0.7247]
[1758265318172,0.26072973,4530.2,4530.1,0.7247]